[Event "Titled Tuesday Blitz April 11 Early 2023"]
[White "Gold_Ocean"]
[Black "Liew, Chee-Meng Jimmy"]
[BlackFideId "5700019"]
[WhiteElo "2593"]
[BlackElo "2245"]
[Result "0-1"]
[Round "08"]
[TimeControl "180+2"]
[Date "2023.04.11"]
[WhiteClock "0:00:01"]
[BlackClock "0:01:18"]

1. Nf3 {[%clk 0:03:00]}  d5 {[%clk 0:03:00]} 2. g3 {[%clk 0:02:59]}  Nf6 {[%clk 0:03:00]} 3. Bg2 {[%clk 0:02:59]}  g6 {[%clk 0:03:00]} 4. O-O {[%clk 0:03:00]}  Bg7 {[%clk 0:03:01]} 5. d3 {[%clk 0:02:59]}  O-O {[%clk 0:03:01]} 6. Nbd2 {[%clk 0:02:59]}  c5 {[%clk 0:03:01]} 7. e4 {[%clk 0:02:59]}  d4 {[%clk 0:03:02]} 8. Qe2 {[%clk 0:02:58]}  Nc6 {[%clk 0:03:02]} 9. a4 {[%clk 0:02:56]}  e5 {[%clk 0:03:02]} 10. h3 {[%clk 0:02:56]}  h6 {[%clk 0:03:00]} 11. Re1 {[%clk 0:02:56]}  Be6 {[%clk 0:02:58]} 12. Nf1 {[%clk 0:02:55]}  Qd7 {[%clk 0:02:57]} 13. g4 {[%clk 0:02:51]}  Ne8 {[%clk 0:02:49]} 14. Ng3 {[%clk 0:02:50]}  Nd6 {[%clk 0:02:49]} 15. Bd2 {[%clk 0:02:39]}  f5 {[%clk 0:02:49]} 16. exf5 {[%clk 0:02:38]}  gxf5 {[%clk 0:02:50]} 17. gxf5 {[%clk 0:02:38]}  Nxf5 {[%clk 0:02:51]} 18. Ne4 {[%clk 0:02:25]}  b6 {[%clk 0:02:48]} 19. Nh2 {[%clk 0:02:25]}  Nh4 {[%clk 0:02:47]} 20. Ng4 {[%clk 0:02:25]}  Nxg2 {[%clk 0:02:45]} 21. Kxg2 {[%clk 0:02:25]}  h5 {[%clk 0:02:44]} 22. Nh6+ {[%clk 0:02:22]}  Bxh6 {[%clk 0:02:44]} 23. Bxh6 {[%clk 0:02:23]}  Bxh3+ {[%clk 0:02:45]} 24. Kh2 {[%clk 0:02:20]}  Bg4 {[%clk 0:02:45]} 25. Rg1 {[%clk 0:02:14]}  Kh7 {[%clk 0:02:39]} 26. f3 {[%clk 0:01:50]}  Rxf3 {[%clk 0:02:21]} 27. Ng5+ {[%clk 0:01:48]}  Kxh6 {[%clk 0:02:21]} 28. Nxf3 {[%clk 0:01:48]}  Qf5 {[%clk 0:02:21]} 29. Qd2+ {[%clk 0:01:44]}  Kh7 {[%clk 0:02:21]} 30. Ng5+ {[%clk 0:01:40]}  Kg6 {[%clk 0:02:18]} 31. Ne4 {[%clk 0:01:38]}  Qf4+ {[%clk 0:02:14]} 32. Qxf4 {[%clk 0:01:30]}  exf4 {[%clk 0:02:14]} 33. Raf1 {[%clk 0:01:16]}  Rf8 {[%clk 0:02:14]} 34. Rf2 {[%clk 0:01:16]}  Ne7 {[%clk 0:02:05]} 35. Rgf1 {[%clk 0:01:06]}  Nd5 {[%clk 0:02:00]} 36. c3 {[%clk 0:00:50]}  Ne3 {[%clk 0:01:48]} 37. Rg1 {[%clk 0:00:50]}  Kh6 {[%clk 0:01:48]} 38. cxd4 {[%clk 0:00:32]}  cxd4 {[%clk 0:01:49]} 39. Nd2 {[%clk 0:00:33]}  Bc8 {[%clk 0:01:39]} 40. Rf3 {[%clk 0:00:24]}  Bg4 {[%clk 0:01:32]} 41. Rf2 {[%clk 0:00:22]}  Bd1 {[%clk 0:01:28]} 42. Kh1 {[%clk 0:00:09]}  Bxa4 {[%clk 0:01:26]} 43. Nf3 {[%clk 0:00:03]}  Bc6 {[%clk 0:01:25]} 44. Rc1 {[%clk 0:00:04]}  Rc8 {[%clk 0:01:24]} 45. Kg1 {[%clk 0:00:03]}  Rg8+ {[%clk 0:01:22]} 46. Kh1 {[%clk 0:00:04]}  Bd5 {[%clk 0:01:19]} 47. Rc7 {[%clk 0:00:04]}  Rg3 {[%clk 0:01:18]} 48. Rfc2 {[%clk 0:00:01]}  Bxf3+ {[%clk 0:01:17]} 49. Kh2 {[%clk 0:00:01]}  Nf1# {[%clk 0:01:18]} 0-1


[Site "https://www.chess.com"]

[Event "Titled Tuesday Blitz April 11 Early 2023"]
[White "TimGrutter03"]
[Black "Arat, Ufuk Sezen"]
[BlackFideId "6309089"]
[WhiteElo "2593"]
[BlackElo "2289"]
[Result "0-1"]
[Round "08"]
[TimeControl "180+2"]
[Date "2023.04.11"]
[WhiteClock "0:00:02"]
[BlackClock "0:00:26"]

1. e4 {[%clk 0:03:00]}  c5 {[%clk 0:03:00]} 2. Nf3 {[%clk 0:03:01]}  e6 {[%clk 0:03:00]} 3. g3 {[%clk 0:03:01]}  d5 {[%clk 0:03:00]} 4. exd5 {[%clk 0:03:01]}  exd5 {[%clk 0:03:01]} 5. Bg2 {[%clk 0:03:01]}  d4 {[%clk 0:03:01]} 6. O-O {[%clk 0:03:01]}  Nc6 {[%clk 0:03:01]} 7. Re1+ {[%clk 0:03:00]}  Be7 {[%clk 0:03:02]} 8. d3 {[%clk 0:02:54]}  Nf6 {[%clk 0:03:01]} 9. Bg5 {[%clk 0:02:42]}  O-O {[%clk 0:03:01]} 10. Nbd2 {[%clk 0:02:42]}  Be6 {[%clk 0:02:54]} 11. Nb3 {[%clk 0:02:27]}  Qb6 {[%clk 0:02:37]} 12. Ne5 {[%clk 0:02:19]}  h6 {[%clk 0:02:30]} 13. Nxc6 {[%clk 0:02:11]}  bxc6 {[%clk 0:02:29]} 14. Bxf6 {[%clk 0:02:07]}  Bxf6 {[%clk 0:02:29]} 15. Qh5 {[%clk 0:01:52]}  c4 {[%clk 0:02:20]} 16. dxc4 {[%clk 0:01:53]}  Bxc4 {[%clk 0:02:19]} 17. Be4 {[%clk 0:01:47]}  Be6 {[%clk 0:02:03]} 18. Qf3 {[%clk 0:01:33]}  Rac8 {[%clk 0:01:58]} 19. a4 {[%clk 0:01:13]}  c5 {[%clk 0:01:56]} 20. a5 {[%clk 0:01:12]}  Qb5 {[%clk 0:01:28]} 21. Bb7 {[%clk 0:01:08]}  Rc7 {[%clk 0:01:26]} 22. a6 {[%clk 0:01:08]}  c4 {[%clk 0:01:26]} 23. Nd2 {[%clk 0:01:06]}  d3 {[%clk 0:01:19]} 24. cxd3 {[%clk 0:01:01]}  cxd3 {[%clk 0:01:10]} 25. Ra3 {[%clk 0:00:36]}  Rd8 {[%clk 0:00:58]} 26. Re3 {[%clk 0:00:31]}  Bh3 {[%clk 0:00:40]} 27. Ra1 {[%clk 0:00:14]}  Qxb2 {[%clk 0:00:37]} 28. Rd1 {[%clk 0:00:12]}  Rc1 {[%clk 0:00:31]} 29. Ree1 {[%clk 0:00:08]}  Rxd1 {[%clk 0:00:31]} 30. Rxd1 {[%clk 0:00:06]}  Qe5 {[%clk 0:00:28]} 31. g4 {[%clk 0:00:05]}  Qe2 {[%clk 0:00:26]} 32. Ne4 {[%clk 0:00:01]}  Qxf3 {[%clk 0:00:26]} 33. Nxf6+ {[%clk 0:00:02]}  Qxf6 {[%clk 0:00:26]} 0-1


[Site "https://www.chess.com"]

[Event "Titled Tuesday Blitz April 11 Early 2023"]
[White "Kucuksari, Kaan"]
[Black "Demchenko, Anton"]
[WhiteFideId "6380166"]
[BlackFideId "4160258"]
[WhiteElo "2364"]
[BlackElo "2545"]
[Result "0-1"]
[Round "08"]
[TimeControl "180+2"]
[Date "2023.04.11"]
[WhiteClock "0:00:01"]
[BlackClock "0:00:23"]

1. d4 {[%clk 0:03:00]}  d5 {[%clk 0:02:59]} 2. c4 {[%clk 0:03:01]}  c6 {[%clk 0:03:00]} 3. cxd5 {[%clk 0:02:58]}  cxd5 {[%clk 0:03:00]} 4. Nf3 {[%clk 0:02:59]}  Nc6 {[%clk 0:02:59]} 5. Nc3 {[%clk 0:02:59]}  e6 {[%clk 0:03:00]} 6. Bf4 {[%clk 0:02:59]}  Bd6 {[%clk 0:03:00]} 7. Bxd6 {[%clk 0:02:58]}  Qxd6 {[%clk 0:03:01]} 8. e3 {[%clk 0:02:58]}  Nge7 {[%clk 0:03:02]} 9. Bd3 {[%clk 0:02:58]}  h6 {[%clk 0:02:59]} 10. O-O {[%clk 0:02:58]}  O-O {[%clk 0:03:00]} 11. Rc1 {[%clk 0:02:58]}  Bd7 {[%clk 0:03:00]} 12. a3 {[%clk 0:02:57]}  Rfc8 {[%clk 0:02:59]} 13. b4 {[%clk 0:02:42]}  Be8 {[%clk 0:02:56]} 14. Bb1 {[%clk 0:02:29]}  f6 {[%clk 0:02:52]} 15. e4 {[%clk 0:02:24]}  Bh5 {[%clk 0:02:52]} 16. exd5 {[%clk 0:02:13]}  exd5 {[%clk 0:02:36]} 17. Re1 {[%clk 0:01:44]}  Kf8 {[%clk 0:02:26]} 18. Re3 {[%clk 0:01:34]}  a5 {[%clk 0:02:19]} 19. b5 {[%clk 0:01:26]}  Nd8 {[%clk 0:02:20]} 20. Qb3 {[%clk 0:01:08]}  Bxf3 {[%clk 0:02:09]} 21. Rce1 {[%clk 0:00:49]}  Be4 {[%clk 0:01:54]} 22. Nxe4 {[%clk 0:00:35]}  dxe4 {[%clk 0:01:55]} 23. Rxe4 {[%clk 0:00:36]}  a4 {[%clk 0:01:25]} 24. Qf3 {[%clk 0:00:19]}  Rc7 {[%clk 0:01:18]} 25. g3 {[%clk 0:00:10]}  Rac8 {[%clk 0:01:06]} 26. Kg2 {[%clk 0:00:10]}  Qd5 {[%clk 0:00:51]} 27. h4 {[%clk 0:00:07]}  Nf7 {[%clk 0:00:49]} 28. Qe3 {[%clk 0:00:05]}  Nd6 {[%clk 0:00:48]} 29. Kh2 {[%clk 0:00:05]}  Nxe4 {[%clk 0:00:48]} 30. Bxe4 {[%clk 0:00:06]}  Qb3 {[%clk 0:00:44]} 31. Qf4 {[%clk 0:00:05]}  Qe6 {[%clk 0:00:38]} 32. d5 {[%clk 0:00:04]}  Qe5 {[%clk 0:00:38]} 33. Qd2 {[%clk 0:00:03]}  Qd6 {[%clk 0:00:36]} 34. b6 {[%clk 0:00:03]}  Rc3 {[%clk 0:00:32]} 35. Qd1 {[%clk 0:00:02]}  Rxa3 {[%clk 0:00:25]} 36. Bg2 {[%clk 0:00:01]}  Rd8 {[%clk 0:00:23]} 0-1


[Site "https://www.chess.com"]

[Event "Titled Tuesday Blitz April 11 Early 2023"]
[White "Omelja, Artem"]
[Black "Matinian, Nikita"]
[WhiteFideId "14119846"]
[BlackFideId "24129100"]
[WhiteElo "2404"]
[BlackElo "2422"]
[Result "1-0"]
[Round "08"]
[TimeControl "180+2"]
[Date "2023.04.11"]
[WhiteClock "0:00:22"]
[BlackClock "0:00:02"]

1. d4 {[%clk 0:03:00]}  Nf6 {[%clk 0:02:59]} 2. c4 {[%clk 0:03:00]}  e6 {[%clk 0:02:59]} 3. Nc3 {[%clk 0:02:57]}  Bb4 {[%clk 0:03:00]} 4. Bd2 {[%clk 0:02:57]}  b6 {[%clk 0:02:58]} 5. e3 {[%clk 0:02:56]}  Bb7 {[%clk 0:02:58]} 6. Nf3 {[%clk 0:02:57]}  O-O {[%clk 0:02:58]} 7. Bd3 {[%clk 0:02:57]}  c5 {[%clk 0:02:58]} 8. O-O {[%clk 0:02:56]}  cxd4 {[%clk 0:02:57]} 9. Nxd4 {[%clk 0:02:55]}  Nc6 {[%clk 0:02:55]} 10. a3 {[%clk 0:02:53]}  Bxc3 {[%clk 0:02:53]} 11. Bxc3 {[%clk 0:02:52]}  Rc8 {[%clk 0:02:52]} 12. b4 {[%clk 0:02:38]}  d5 {[%clk 0:02:51]} 13. Nxc6 {[%clk 0:02:37]}  Bxc6 {[%clk 0:02:51]} 14. Qe2 {[%clk 0:02:29]}  dxc4 {[%clk 0:02:31]} 15. Bxc4 {[%clk 0:02:18]}  Ne4 {[%clk 0:02:22]} 16. Bb2 {[%clk 0:02:16]}  Qh4 {[%clk 0:01:41]} 17. Rfd1 {[%clk 0:02:12]}  Nxf2 {[%clk 0:01:29]} 18. Qxf2 {[%clk 0:02:01]}  Qxc4 {[%clk 0:01:28]} 19. Rac1 {[%clk 0:02:01]}  Qe4 {[%clk 0:01:26]} 20. Rd4 {[%clk 0:02:00]}  Qf5 {[%clk 0:01:24]} 21. Qxf5 {[%clk 0:01:42]}  exf5 {[%clk 0:01:25]} 22. Rdc4 {[%clk 0:01:42]}  Bd7 {[%clk 0:01:25]} 23. Rxc8 {[%clk 0:01:42]}  Bxc8 {[%clk 0:01:24]} 24. Rc7 {[%clk 0:01:42]}  a6 {[%clk 0:01:23]} 25. Bd4 {[%clk 0:01:42]}  b5 {[%clk 0:01:23]} 26. Bc5 {[%clk 0:01:41]}  Rd8 {[%clk 0:01:15]} 27. h4 {[%clk 0:01:41]}  h5 {[%clk 0:01:05]} 28. Kf2 {[%clk 0:01:33]}  f6 {[%clk 0:01:05]} 29. Kg3 {[%clk 0:01:31]}  Re8 {[%clk 0:00:40]} 30. Ra7 {[%clk 0:01:26]}  Kh7 {[%clk 0:00:38]} 31. Ra8 {[%clk 0:01:25]}  Kg6 {[%clk 0:00:37]} 32. Kf2 {[%clk 0:01:25]}  Kh6 {[%clk 0:00:29]} 33. Rb8 {[%clk 0:01:23]}  Rd8 {[%clk 0:00:21]} 34. Ke1 {[%clk 0:01:22]}  Kg6 {[%clk 0:00:18]} 35. g3 {[%clk 0:01:21]}  f4 {[%clk 0:00:17]} 36. exf4 {[%clk 0:01:17]}  Kf5 {[%clk 0:00:18]} 37. Kf2 {[%clk 0:01:10]}  g6 {[%clk 0:00:16]} 38. Ke3 {[%clk 0:00:46]}  Re8+ {[%clk 0:00:14]} 39. Kd2 {[%clk 0:00:45]}  Kg4 {[%clk 0:00:14]} 40. Bd4 {[%clk 0:00:44]}  Kxg3 {[%clk 0:00:09]} 41. Bxf6 {[%clk 0:00:44]}  Re6 {[%clk 0:00:08]} 42. Be5 {[%clk 0:00:42]}  Rc6 {[%clk 0:00:09]} 43. f5+ {[%clk 0:00:38]}  Kxh4 {[%clk 0:00:07]} 44. f6 {[%clk 0:00:39]}  Be6 {[%clk 0:00:07]} 45. Re8 {[%clk 0:00:37]}  Bb3 {[%clk 0:00:05]} 46. Re7 {[%clk 0:00:35]}  Rc8 {[%clk 0:00:03]} 47. Bd6 {[%clk 0:00:27]}  Rd8 {[%clk 0:00:03]} 48. Re4+ {[%clk 0:00:23]}  Kg5 {[%clk 0:00:03]} 49. Rd4 {[%clk 0:00:23]}  Bd5 {[%clk 0:00:01]} 50. Rxd5+ {[%clk 0:00:21]}  Kxf6 {[%clk 0:00:01]} 51. Be5+ {[%clk 0:00:22]}  Ke7 {[%clk 0:00:01]} 52. Bf6+ {[%clk 0:00:22]}  Kxf6 {[%clk 0:00:01]} 53. Rxd8 {[%clk 0:00:23]}  Kg5 {[%clk 0:00:01]} 54. Rd6 {[%clk 0:00:22]}  Kh4 {[%clk 0:00:02]} 1-0


[Site "https://www.chess.com"]

[Event "Titled Tuesday Blitz April 11 Early 2023"]
[White "Mendez Fortes, Eduardo Jesus"]
[Black "Dushyant Sharma"]
[WhiteFideId "3502376"]
[BlackFideId "25065130"]
[WhiteElo "2307"]
[BlackElo "2198"]
[Result "0-1"]
[Round "08"]
[TimeControl "180+2"]
[Date "2023.04.11"]
[WhiteClock "0:00:20"]
[BlackClock "0:00:06"]

1. e4 {[%clk 0:03:00]}  d5 {[%clk 0:02:59]} 2. exd5 {[%clk 0:03:00]}  Nf6 {[%clk 0:03:00]} 3. Bb5+ {[%clk 0:03:00]}  c6 {[%clk 0:03:00]} 4. Be2 {[%clk 0:03:01]}  cxd5 {[%clk 0:03:00]} 5. d4 {[%clk 0:03:01]}  Nc6 {[%clk 0:03:00]} 6. Nf3 {[%clk 0:03:01]}  Bg4 {[%clk 0:03:00]} 7. O-O {[%clk 0:03:01]}  e6 {[%clk 0:03:00]} 8. c3 {[%clk 0:03:02]}  Bd6 {[%clk 0:02:58]} 9. Nbd2 {[%clk 0:03:01]}  O-O {[%clk 0:02:58]} 10. Nb3 {[%clk 0:03:01]}  Ne4 {[%clk 0:02:52]} 11. Nfd2 {[%clk 0:02:56]}  Bxe2 {[%clk 0:02:51]} 12. Qxe2 {[%clk 0:02:56]}  f5 {[%clk 0:02:51]} 13. f3 {[%clk 0:02:49]}  Qh4 {[%clk 0:01:50]} 14. g3 {[%clk 0:02:42]}  Nxg3 {[%clk 0:01:21]} 15. hxg3 {[%clk 0:02:36]}  Bxg3 {[%clk 0:01:18]} 16. Rf2 {[%clk 0:02:20]}  Rf6 {[%clk 0:01:07]} 17. Rg2 {[%clk 0:01:58]}  Rh6 {[%clk 0:00:56]} 18. Kf1 {[%clk 0:01:58]}  f4 {[%clk 0:00:46]} 19. Rg1 {[%clk 0:01:38]}  Re8 {[%clk 0:00:34]} 20. c4 {[%clk 0:01:24]}  Nb4 {[%clk 0:00:16]} 21. cxd5 {[%clk 0:01:05]}  Qh3+ {[%clk 0:00:12]} 22. Qg2 {[%clk 0:01:03]}  exd5 {[%clk 0:00:13]} 23. Ne4 {[%clk 0:00:42]}  dxe4 {[%clk 0:00:11]} 24. Bd2 {[%clk 0:00:39]}  Nc2 {[%clk 0:00:08]} 25. Rc1 {[%clk 0:00:34]}  e3 {[%clk 0:00:08]} 26. Qxh3 {[%clk 0:00:24]}  Rxh3 {[%clk 0:00:06]} 27. Rxc2 {[%clk 0:00:20]}  e2+ {[%clk 0:00:06]} 28. Kg2 {[%clk 0:00:20]}  Rh2# {[%clk 0:00:06]} 0-1


[Site "https://www.chess.com"]

[Event "Titled Tuesday Blitz April 11 Early 2023"]
[White "Deng, Henry"]
[Black "Poliakova, Varvara"]
[WhiteFideId "30965454"]
[BlackFideId "13518313"]
[WhiteElo "2511"]
[BlackElo "2075"]
[Result "1/2-1/2"]
[Round "08"]
[TimeControl "180+2"]
[Date "2023.04.11"]
[WhiteClock "0:00:16"]
[BlackClock "0:00:10"]

1. e4 {[%clk 0:03:00]}  e5 {[%clk 0:02:41]} 2. Nf3 {[%clk 0:02:59]}  Nc6 {[%clk 0:02:42]} 3. Bc4 {[%clk 0:02:58]}  Bc5 {[%clk 0:02:39]} 4. c3 {[%clk 0:02:56]}  Nf6 {[%clk 0:02:40]} 5. d3 {[%clk 0:02:56]}  a6 {[%clk 0:02:38]} 6. Bb3 {[%clk 0:02:55]}  Ba7 {[%clk 0:02:39]} 7. O-O {[%clk 0:02:54]}  d6 {[%clk 0:02:35]} 8. Nbd2 {[%clk 0:02:54]}  h6 {[%clk 0:02:35]} 9. Re1 {[%clk 0:02:54]}  Na5 {[%clk 0:02:32]} 10. d4 {[%clk 0:02:40]}  Nxb3 {[%clk 0:02:28]} 11. Qxb3 {[%clk 0:02:41]}  Qe7 {[%clk 0:02:28]} 12. Nc4 {[%clk 0:02:37]}  b5 {[%clk 0:02:25]} 13. dxe5 {[%clk 0:02:29]}  bxc4 {[%clk 0:02:26]} 14. exf6 {[%clk 0:02:30]}  cxb3 {[%clk 0:02:21]} 15. fxe7 {[%clk 0:02:30]}  bxa2 {[%clk 0:02:17]} 16. Rxa2 {[%clk 0:02:29]}  Kxe7 {[%clk 0:02:18]} 17. Be3 {[%clk 0:02:24]}  Be6 {[%clk 0:02:10]} 18. Ra3 {[%clk 0:02:16]}  Bxe3 {[%clk 0:02:08]} 19. Rxe3 {[%clk 0:02:15]}  a5 {[%clk 0:02:06]} 20. Nd4 {[%clk 0:02:13]}  a4 {[%clk 0:01:59]} 21. Re2 {[%clk 0:02:00]}  c5 {[%clk 0:01:55]} 22. Nxe6 {[%clk 0:01:48]}  Kxe6 {[%clk 0:01:56]} 23. f4 {[%clk 0:01:48]}  Rhb8 {[%clk 0:01:52]} 24. Kf2 {[%clk 0:01:43]}  Rb3 {[%clk 0:01:52]} 25. Rxb3 {[%clk 0:01:37]}  axb3 {[%clk 0:01:52]} 26. Ke3 {[%clk 0:01:37]}  Ra1 {[%clk 0:01:49]} 27. Kd3 {[%clk 0:01:36]}  Rc1 {[%clk 0:01:46]} 28. g4 {[%clk 0:01:22]}  g5 {[%clk 0:01:42]} 29. fxg5 {[%clk 0:01:19]}  hxg5 {[%clk 0:01:43]} 30. Rf2 {[%clk 0:01:19]}  f6 {[%clk 0:01:43]} 31. h3 {[%clk 0:01:06]}  Ke7 {[%clk 0:01:35]} 32. Re2 {[%clk 0:01:04]}  Rh1 {[%clk 0:01:30]} 33. Kc4 {[%clk 0:00:42]}  Rxh3 {[%clk 0:01:29]} 34. Rg2 {[%clk 0:00:42]}  Re3 {[%clk 0:01:29]} 35. Kd5 {[%clk 0:00:42]}  Rf3 {[%clk 0:01:10]} 36. Rh2 {[%clk 0:00:39]}  Rd3+ {[%clk 0:01:05]} 37. Kc4 {[%clk 0:00:38]}  Rg3 {[%clk 0:01:05]} 38. Kd5 {[%clk 0:00:38]}  Rxg4 {[%clk 0:01:02]} 39. Rh7+ {[%clk 0:00:38]}  Kf8 {[%clk 0:01:01]} 40. Rd7 {[%clk 0:00:35]}  Rg2 {[%clk 0:00:59]} 41. Ke6 {[%clk 0:00:33]}  Rxb2 {[%clk 0:00:57]} 42. Kxf6 {[%clk 0:00:32]}  Rf2+ {[%clk 0:00:57]} 43. Kxg5 {[%clk 0:00:26]}  b2 {[%clk 0:00:52]} 44. Rb7 {[%clk 0:00:26]}  Ke8 {[%clk 0:00:47]} 45. Kg4 {[%clk 0:00:26]}  Kd8 {[%clk 0:00:48]} 46. Kg3 {[%clk 0:00:26]}  Kc8 {[%clk 0:00:47]} 47. Rb3 {[%clk 0:00:25]}  Rc2 {[%clk 0:00:47]} 48. Kf4 {[%clk 0:00:23]}  Kc7 {[%clk 0:00:47]} 49. Ke3 {[%clk 0:00:22]}  Kc6 {[%clk 0:00:45]} 50. Kd3 {[%clk 0:00:22]}  Rh2 {[%clk 0:00:43]} 51. Kc4 {[%clk 0:00:20]}  Kd7 {[%clk 0:00:36]} 52. Rb7+ {[%clk 0:00:20]}  Ke6 {[%clk 0:00:36]} 53. Rb6 {[%clk 0:00:19]}  Ke5 {[%clk 0:00:36]} 54. Kd3 {[%clk 0:00:19]}  c4+ {[%clk 0:00:25]} 55. Kxc4 {[%clk 0:00:18]}  Kxe4 {[%clk 0:00:26]} 56. Rb4 {[%clk 0:00:18]}  d5+ {[%clk 0:00:15]} 57. Kb3+ {[%clk 0:00:18]}  Kd3 {[%clk 0:00:12]} 58. Rd4+ {[%clk 0:00:18]}  Ke3 {[%clk 0:00:11]} 59. Ka2 {[%clk 0:00:18]}  Rc2 {[%clk 0:00:08]} 60. Rxd5 {[%clk 0:00:16]}  Rxc3 {[%clk 0:00:08]} 61. Kxb2 {[%clk 0:00:17]}  Rd3 {[%clk 0:00:09]} 62. Rxd3+ {[%clk 0:00:16]}  Kxd3 {[%clk 0:00:10]} 1/2-1/2


[Site "https://www.chess.com"]

[Event "Titled Tuesday Blitz April 11 Early 2023"]
[White "Lorenzo De La Riva, Lazaro"]
[Black "Skvortsov, Andrei"]
[WhiteFideId "2268809"]
[BlackFideId "24108600"]
[WhiteElo "2294"]
[BlackElo "2259"]
[Result "1/2-1/2"]
[Round "08"]
[TimeControl "180+2"]
[Date "2023.04.11"]
[WhiteClock "0:00:20"]
[BlackClock "0:00:57"]

1. Nf3 {[%clk 0:03:00]}  g6 {[%clk 0:02:51]} 2. d4 {[%clk 0:02:54]}  Bg7 {[%clk 0:02:51]} 3. Nc3 {[%clk 0:02:53]}  d5 {[%clk 0:02:49]} 4. Bf4 {[%clk 0:02:51]}  c6 {[%clk 0:02:48]} 5. Qd2 {[%clk 0:02:45]}  Nf6 {[%clk 0:02:47]} 6. e3 {[%clk 0:02:42]}  Qb6 {[%clk 0:02:44]} 7. O-O-O {[%clk 0:02:38]}  h6 {[%clk 0:02:34]} 8. Ne5 {[%clk 0:02:32]}  g5 {[%clk 0:02:30]} 9. Bg3 {[%clk 0:02:31]}  Bf5 {[%clk 0:02:23]} 10. f3 {[%clk 0:02:20]}  Nbd7 {[%clk 0:02:22]} 11. Nxd7 {[%clk 0:02:17]}  Nxd7 {[%clk 0:02:21]} 12. Bd3 {[%clk 0:02:17]}  Bxd3 {[%clk 0:02:21]} 13. Qxd3 {[%clk 0:02:16]}  e5 {[%clk 0:02:21]} 14. Qf5 {[%clk 0:02:10]}  Rd8 {[%clk 0:02:08]} 15. dxe5 {[%clk 0:02:06]}  Qxe3+ {[%clk 0:02:05]} 16. Kb1 {[%clk 0:02:06]}  Nf8 {[%clk 0:02:02]} 17. Rhe1 {[%clk 0:02:02]}  Qc5 {[%clk 0:02:02]} 18. e6 {[%clk 0:01:44]}  fxe6 {[%clk 0:02:00]} 19. Rxe6+ {[%clk 0:00:50]}  Nxe6 {[%clk 0:01:59]} 20. Qxe6+ {[%clk 0:00:51]}  Kf8 {[%clk 0:01:50]} 21. Be5 {[%clk 0:00:39]}  Rh7 {[%clk 0:01:35]} 22. Ne4 {[%clk 0:00:30]}  Qe7 {[%clk 0:01:33]} 23. Qf5+ {[%clk 0:00:24]}  Kg8 {[%clk 0:01:32]} 24. Nf6+ {[%clk 0:00:23]}  Bxf6 {[%clk 0:01:32]} 25. Bxf6 {[%clk 0:00:24]}  Qf7 {[%clk 0:01:28]} 26. h4 {[%clk 0:00:24]}  Rf8 {[%clk 0:01:21]} 27. hxg5 {[%clk 0:00:23]}  Rg7 {[%clk 0:01:15]} 28. f4 {[%clk 0:00:19]}  hxg5 {[%clk 0:01:10]} 29. fxg5 {[%clk 0:00:20]}  Qg6 {[%clk 0:01:10]} 30. Qe6+ {[%clk 0:00:20]}  Qf7 {[%clk 0:01:03]} 31. Qf5 {[%clk 0:00:20]}  Qg6 {[%clk 0:01:01]} 32. Qe6+ {[%clk 0:00:20]}  Qf7 {[%clk 0:00:57]} 33. Qf5 {[%clk 0:00:20]} 1/2-1/2


[Site "https://www.chess.com"]

[Event "Titled Tuesday Blitz April 11 Early 2023"]
[White "Toncheva, Nadya"]
[Black "Belov, Alexei"]
[WhiteFideId "2924056"]
[BlackFideId "4128206"]
[WhiteElo "2101"]
[BlackElo "2628"]
[Result "1-0"]
[Round "08"]
[TimeControl "180+2"]
[Date "2023.04.11"]
[WhiteClock "0:00:23"]
[BlackClock "0:00:05"]

1. d4 {[%clk 0:03:00]}  e6 {[%clk 0:02:59]} 2. c4 {[%clk 0:03:01]}  d5 {[%clk 0:02:59]} 3. Nc3 {[%clk 0:03:01]}  Be7 {[%clk 0:02:59]} 4. cxd5 {[%clk 0:03:01]}  exd5 {[%clk 0:02:59]} 5. Nf3 {[%clk 0:03:02]}  c6 {[%clk 0:02:59]} 6. Bf4 {[%clk 0:02:55]}  Bf5 {[%clk 0:02:58]} 7. e3 {[%clk 0:02:51]}  Nf6 {[%clk 0:02:58]} 8. Ne5 {[%clk 0:02:47]}  Nbd7 {[%clk 0:02:54]} 9. f3 {[%clk 0:02:30]}  Nh5 {[%clk 0:02:38]} 10. Bd3 {[%clk 0:02:18]}  Nxf4 {[%clk 0:02:27]} 11. exf4 {[%clk 0:02:18]}  Bxd3 {[%clk 0:02:25]} 12. Qxd3 {[%clk 0:02:19]}  O-O {[%clk 0:02:23]} 13. O-O-O {[%clk 0:02:18]}  Nxe5 {[%clk 0:02:04]} 14. fxe5 {[%clk 0:02:19]}  b5 {[%clk 0:02:04]} 15. Kb1 {[%clk 0:02:17]}  a5 {[%clk 0:02:03]} 16. f4 {[%clk 0:02:15]}  a4 {[%clk 0:02:02]} 17. f5 {[%clk 0:02:11]}  Bb4 {[%clk 0:01:59]} 18. Rhf1 {[%clk 0:02:01]}  Qh4 {[%clk 0:01:42]} 19. f6 {[%clk 0:01:53]}  g6 {[%clk 0:01:42]} 20. Rf3 {[%clk 0:01:49]}  a3 {[%clk 0:01:41]} 21. b3 {[%clk 0:01:44]}  Qxh2 {[%clk 0:01:32]} 22. Rh3 {[%clk 0:01:11]}  Qxg2 {[%clk 0:01:31]} 23. Rd2 {[%clk 0:00:55]}  Qg1+ {[%clk 0:00:49]} 24. Rd1 {[%clk 0:00:49]}  Qf2 {[%clk 0:00:48]} 25. Ne2 {[%clk 0:00:47]}  h5 {[%clk 0:00:20]} 26. Rg1 {[%clk 0:00:30]}  Rfc8 {[%clk 0:00:17]} 27. Rxh5 {[%clk 0:00:26]}  Ra7 {[%clk 0:00:08]} 28. Rxg6+ {[%clk 0:00:22]}  fxg6 {[%clk 0:00:08]} 29. Qxg6+ {[%clk 0:00:23]}  Kf8 {[%clk 0:00:05]} 30. Rh8# {[%clk 0:00:23]} 1-0


[Site "https://www.chess.com"]